Workbook

Sheet LCC算出
B1: ■INPUT | Q1: ■OUTPUT | AD1: =Set_Cycle(E19,E21,E31) -> 111 | AE1: ：検索値
C2: ■基本情報の入力 | M2: ※凡例 | AD2: =Set_Cycle(E38,E40,E50) -> 212 | AE2: ：検索値
M3: 入力 | N3: 選択 | Q3: ( 1 ) 塗替え1回あたり費用内訳（TYPE毎） | AD3: =Set_Cycle(E57,E59,E69) -> 331 | AE3: ：検索値
D4: ①橋梁形式 | E4: 鈑桁橋 | G4: （選択） | H4: （鈑桁橋・箱桁橋）
R5: 塗替え方法 | S5: 塗替え仕様 | T5: 足場 | U5: 単価(m2/円) | W5: 面積(m2)
D6: ②床版との結合 | E6: 非合成 | G6: （選択） | H6: （非合成・合成） | U6: 塗替え | V6: 足場 | W6: 塗替え | X6: 足場
Q7: TYPE-1 | R7: =+E19 -> 全面塗替え | S7: =+E21 -> Rc-Ⅰ | T7: =+E28 -> Rc-Ⅰ用 | U7: =VLOOKUP(S7,tanka_Paint,4,FALSE) -> 11012 | V7: =VLOOKUP(T7,tanka_Ashiba,2,FALSE) -> 8200 | W7: =+E26 -> 1153.769 | X7: =+E29 -> 383.5
D8: ③径間数 | E8: 単純 | G8: （選択） | H8: （単純・連続） | K8: 径間数： | L8: 1 | Q8: TYPE-2 | R8: =+E38 -> 部分塗替え | S8: =+E40 -> Rc-Ⅰ | T8: =+E47 -> Rc-Ⅰ用 | U8: =VLOOKUP(S8,tanka_Paint,4,FALSE) -> 11012 | V8: =VLOOKUP(T8,tanka_Ashiba,2,FALSE) -> 8200 | W8: =+E45 -> 115.377 | X8: =+E48 -> 20.8
Q9: TYPE-3 | R9: =+E57 -> 点検時塗装 | S9: =+E59 -> 点検時塗装① | T9: =+E66 -> なし | U9: =VLOOKUP(S9,tanka_Paint,4,FALSE) -> 12333 | V9: =VLOOKUP(T9,tanka_Ashiba,2,FALSE) -> 0 | W9: =+E64 -> 31.151763 | X9: =+E67 -> 0
D10: ④平均支間長 | E10: 29.5 | G10: m | K10: 橋 長： | L10: 29.5 | N10: m
R11: 費用(円)
D12: ⑤総幅員 | E12: 13 | G12: m | K12: 橋面積： | L12: =+L10*E12 -> 383.5 | N12: m2 | R12: 塗替え | S12: 足場 | T12: 点検 | U12: 合計
Q13: TYPE-1 | R13: =+U7*W7 -> 12705304.23 | S13: 3144700 | T13: =+IF(R7="点検時塗装",DB!$C$31,0) -> 0 | U13: =SUM(R13:T13) -> 15850004.23
D14: ⑥外面塗装面積 | E14: 1153.769059 | G14: m2 | J14: ※自動計算には，①～⑤の入力が必須 | Q14: TYPE-2 | R14: 1270531.524 | S14: 170560 | T14: =+IF(R8="点検時塗装",DB!$C$31,0) -> 0 | U14: =SUM(R14:T14) -> 1441091.524
E15: ※入力または自動計算 | J15: ※鈑桁/合成/連続、箱桁/合成/単純・連続は適用外 | Q15: TYPE-3 | R15: 384194.6931 | S15: 0 | T15: =+IF(R9="点検時塗装",DB!$C$31,0) -> 187507 | U15: =SUM(R15:T15) -> 571701.6931
J16: ※鈑桁：全塗装面積*1.00，箱桁：全塗装面積*0.40
C17: ■塗替えTYPE-1
Q18: ( 2 ) 塗装塗替えライフサイクルコスト
D19: 塗替え方法 | E19: 全面塗替え | G19: （選択） | H19: （全面塗替え・部分塗替え・点検時塗装）
D21: 塗替え仕様 | E21: Rc-Ⅰ | G21: （選択）
E22: 全面塗替え → Rc-Ⅰ or Rc-Ⅲ
E23: 部分塗替え → Rc-Ⅰ or Rc-Ⅲ
E24: 点検時塗装 → 点検時塗装① or 点検時塗装② or 点検時塗装③
D26: 塗替え面積 | E26: 1153.769 | G26: m2
D28: 足場設置 | E28: Rc-Ⅰ用 | G28: （選択） | H28: （なし・Rc-Ⅰ用・Rc-Ⅲ用）
E29: 383.5 | G29: m2
D31: 周辺環境 | E31: 普通環境 | G31: （選択） | H31: （普通環境・劣悪環境）
D33: 塗替えサイクル（参考） | E33: =VLOOKUP(AD1,CYCLE,2,FALSE) -> 35 | G33: 年（塗装仕様標準値）
E34: 注）上記年数を参考に，SHEET"LCCグラフバックデータ"の必要箇所に"○"を記入
C36: ■塗替えTYPE-2
D38: 塗替え方法 | E38: 部分塗替え | G38: （選択） | H38: （全面塗替え・部分塗替え・点検時塗装）
D40: 塗替え仕様 | E40: Rc-Ⅰ | G40: （選択） | Q40: 【CASE-1】塗替え費用および回数一覧
E41: 全面塗替え → Rc-Ⅰ or Rc-Ⅲ | S41: 塗替え費用（千円） | U41: 塗替え
E42: 部分塗替え → Rc-Ⅰ or Rc-Ⅲ | R42: 塗替え方法 | S42: 1回あたり | T42: 小 計 | U42: 回数
E43: 点検時塗装 → 点検時塗装① or 点検時塗装② or 点検時塗装③ | Q43: TYPE-1 | R43: =VLOOKUP(Q43,$Q$7:$R$9,2,FALSE) -> 全面塗替え | S43: =IFERROR(T43/U43,0) -> 15850.00423 | T43: =+LCCグラフバックデータ!F105 -> 31700.00846 | U43: =+LCCグラフバックデータ!C105 -> 2
Q44: TYPE-2 | R44: =VLOOKUP(Q44,$Q$7:$R$9,2,FALSE) -> 部分塗替え | S44: =IFERROR(T44/U44,0) -> 0 | T44: =+LCCグラフバックデータ!G105 -> 0 | U44: =+LCCグラフバックデータ!D105 -> 0
D45: 塗替え面積 | E45: 115.377 | G45: m2 | Q45: TYPE-3 | R45: 点検時塗装 | S45: =IFERROR(T45/U45,0) -> 0 | T45: =+LCCグラフバックデータ!H105 -> 0 | U45: =+LCCグラフバックデータ!E105 -> 0
Q46: 総 額 | T46: =SUM(T43:T45) -> 31700.00846 | U46: (千円)
D47: 足場設置 | E47: Rc-Ⅰ用 | G47: （選択） | H47: （なし・Rc-Ⅰ用・Rc-Ⅲ用）
E48: =13*0.8*2 -> 20.8 | G48: m2 | Q48: 【CASE-2】塗替え費用および回数一覧
S49: 塗替え費用（千円） | U49: 塗替え
D50: 周辺環境 | E50: 劣悪環境 | G50: （選択） | H50: （普通環境・劣悪環境） | R50: 塗替え方法 | S50: 1回あたり | T50: 小 計 | U50: 回数
Q51: TYPE-1 | R51: =VLOOKUP(Q51,$Q$7:$R$9,2,FALSE) -> 全面塗替え | S51: =IFERROR(T51/U51,0) -> 15850.00423 | T51: =+LCCグラフバックデータ!S105 -> 15850.00423 | U51: =+LCCグラフバックデータ!P105 -> 1
D52: 塗替えサイクル（参考） | E52: =VLOOKUP(AD2,CYCLE,2,FALSE) -> 20 | G52: 年（塗装仕様標準値） | Q52: TYPE-2 | R52: =VLOOKUP(Q52,$Q$7:$R$9,2,FALSE) -> 部分塗替え | S52: =IFERROR(T52/U52,0) -> 1441.091524 | T52: =+LCCグラフバックデータ!T105 -> 2882.183048 | U52: =+LCCグラフバックデータ!Q105 -> 2
E53: 注）上記年数を参考に，SHEET"LCCグラフバックデータ"の必要箇所に"○"を記入 | Q53: TYPE-3 | R53: 点検時塗装 | S53: =IFERROR(T53/U53,0) -> 571.7016931 | T53: =+LCCグラフバックデータ!U105 -> 9147.227089 | U53: =+LCCグラフバックデータ!R105 -> 16
Q54: 総 額 | T54: =SUM(T51:T53) -> 27879.41437 | U54: (千円) | V54: =+T54/T46 -> 0.8794765593 | W54: ：CASE-1比
C55: ■塗替えTYPE-3
Q56: 【CASE-3】塗替え費用および回数一覧
D57: 塗替え方法 | E57: 点検時塗装 | G57: （選択） | H57: （全面塗替え・部分塗替え・点検時塗装） | S57: 塗替え費用（千円） | U57: 塗替え
R58: 塗替え方法 | S58: 1回あたり | T58: 小 計 | U58: 回数
D59: 塗替え仕様 | E59: 点検時塗装① | G59: （選択） | Q59: TYPE-1 | R59: =VLOOKUP(Q59,$Q$7:$R$9,2,FALSE) -> 全面塗替え | S59: =IFERROR(T59/U59,0) -> 0 | T59: =+LCCグラフバックデータ!AF105 -> 0 | U59: =+LCCグラフバックデータ!AC105 -> 0
E60: 全面塗替え → Rc-Ⅰ or Rc-Ⅲ | Q60: TYPE-2 | R60: =VLOOKUP(Q60,$Q$7:$R$9,2,FALSE) -> 部分塗替え | S60: =IFERROR(T60/U60,0) -> 1441.091524 | T60: =+LCCグラフバックデータ!AG105 -> 4323.274572 | U60: =+LCCグラフバックデータ!AD105 -> 3
E61: 部分塗替え → Rc-Ⅰ or Rc-Ⅲ | Q61: TYPE-3 | R61: 点検時塗装 | S61: =IFERROR(T61/U61,0) -> 571.7016931 | T61: =+LCCグラフバックデータ!AH105 -> 9147.227089 | U61: =+LCCグラフバックデータ!AE105 -> 16
E62: 点検時塗装 → 点検時塗装① or 点検時塗装② or 点検時塗装③ | Q62: 総 額 | T62: =SUM(T59:T61) -> 13470.50166 | U62: (千円) | V62: =+T62/T46 -> 0.4249368476 | W62: ：CASE-1比
D64: 塗替え面積 | E64: =+E26*0.027 -> 31.151763 | G64: m2
D66: 足場設置 | E66: なし | G66: （選択） | H66: （なし・Rc-Ⅰ用・Rc-Ⅲ用）
E67: 0 | G67: m2
D69: 周辺環境 | E69: 普通環境 | G69: （選択） | H69: （普通環境・劣悪環境）
D71: 塗替えサイクル（参考） | E71: =VLOOKUP(AD3,CYCLE,2,FALSE) -> 5 | G71: 年（塗装仕様標準値）
E72: 注）上記年数を参考に，SHEET"LCCグラフバックデータ"の必要箇所に"○"を記入

Sheet LCCグラフバックデータ
B1: LCCグラフ用入力（CASE-1） | O1: LCCグラフ用入力（CASE-2） | AB1: LCCグラフ用入力（CASE-3）
C2: ※太枠内に"○"を入力 | P2: ※太枠内に"○"を入力 | AC2: ※太枠内に"○"を入力
B3: CASE-1 | C3: 塗替え実施 | F3: 塗替え費用(千円) | L3: ▼グラフ描画用データ | O3: CASE-2 | P3: 塗替え実施 | S3: 塗替え費用(千円) | Y3: ▼グラフ描画用データ | AB3: CASE-3 | AC3: 塗替え実施 | AF3: 塗替え費用(千円) | AL3: ▼グラフ描画用データ
B4: 年数 | C4: TYPE-1 | D4: TYPE-2 | E4: TYPE-3 | F4: TYPE-1 | G4: TYPE-2 | H4: TYPE-3 | I4: 小計 | J4: 累計 | L4: データ数 | M4: =COUNTA(B5:B104) -> 100 | O4: 年数 | P4: TYPE-1 | Q4: TYPE-2 | R4: TYPE-3 | S4: TYPE-1 | T4: TYPE-2 | U4: TYPE-3 | V4: 小計 | W4: 累計 | Y4: データ数 | Z4: =COUNTA(O5:O104) -> 100 | AB4: 年数 | AC4: TYPE-1 | AD4: TYPE-2 | AE4: TYPE-3 | AF4: TYPE-1 | AG4: TYPE-2 | AH4: TYPE-3 | AI4: 小計 | AJ4: 累計 | AL4: データ数 | AM4: =COUNTA(AB5:AB104) -> 100
B5: 0 | F5: =IF(C5="○",VLOOKUP(F$4,_xlnm.Database,5,FALSE)/1000,0) -> 0 | G5: =IF(D5="○",VLOOKUP(G$4,_xlnm.Database,5,FALSE)/1000,0) -> 0 | H5: =IF(E5="○",VLOOKUP(H$4,_xlnm.Database,5,FALSE)/1000,0) -> 0 | I5: =SUM(F5:H5) -> 0 | J5: =+I5 -> 0 | O5: 0 | S5: =IF(P5="○",VLOOKUP(S$4,_xlnm.Database,5,FALSE)/1000,0) -> 0 | T5: =IF(Q5="○",VLOOKUP(T$4,_xlnm.Database,5,FALSE)/1000,0) -> 0 | U5: =IF(R5="○",VLOOKUP(U$4,_xlnm.Database,5,FALSE)/1000,0) -> 0 | V5: =SUM(S5:U5) -> 0 | W5: =+V5 -> 0 | AB5: 0 | AF5: =IF(AC5="○",VLOOKUP(AF$4,_xlnm.Database,5,FALSE)/1000,0) -> 0 | AG5: =IF(AD5="○",VLOOKUP(AG$4,_xlnm.Database,5,FALSE)/1000,0) -> 0 | AH5: =IF(AE5="○",VLOOKUP(AH$4,_xlnm.Database,5,FALSE)/1000,0) -> 0 | AI5: =SUM(AF5:AH5) -> 0 | AJ5: =+AI5 -> 0
B6: =+B5+1 -> 1 | F6: 0 | G6: 0 | H6: 0 | I6: =SUM(F6:H6) -> 0 | J6: =+J5+I6 -> 0 | L6: X | M6: Y | O6: =+O5+1 -> 1 | S6: 0 | T6: 0 | U6: 0 | V6: =SUM(S6:U6) -> 0 | W6: =+W5+V6 -> 0 | Y6: X | Z6: Y | AB6: =+AB5+1 -> 1 | AF6: 0 | AG6: 0 | AH6: 0 | AI6: =SUM(AF6:AH6) -> 0 | AJ6: =+AJ5+AI6 -> 0 | AL6: X | AM6: Y
B7: =+B6+1 -> 2 | F7: 0 | G7: 0 | H7: 0 | I7: 0 | J7: 0 | L7: 0 | M7: =IF(L7="","",IF(L7=$M$4,INDEX($J$5:$J$104,L7),INDEX($J$5:$J$104,L8))) -> 0 | O7: =+O6+1 -> 2 | S7: 0 | T7: 0 | U7: 0 | V7: 0 | W7: 0 | Y7: 0 | Z7: =IF(Y7="","",IF(Y7=$Z$4,INDEX($W$5:$W$104,Y7),INDEX($W$5:$W$104,Y8))) -> 0 | AB7: =+AB6+1 -> 2 | AF7: 0 | AG7: 0 | AH7: 0 | AI7: 0 | AJ7: 0 | AL7: 0 | AM7: =IF(AL7="","",IF(AL7=$AM$4,INDEX($AJ$5:$AJ$104,AL7),INDEX($AJ$5:$AJ$104,AL8))) -> 0
B8: 3 | F8: 0 | G8: 0 | H8: 0 | I8: 0 | J8: 0 | L8: 1 | M8: =IF(L8="","",IF(L8=$M$4,INDEX($J$5:$J$104,L8),INDEX($J$5:$J$104,L9))) -> 0 | O8: 3 | S8: 0 | T8: 0 | U8: 0 | V8: 0 | W8: 0 | Y8: 1 | Z8: =IF(Y8="","",IF(Y8=$Z$4,INDEX($W$5:$W$104,Y8),INDEX($W$5:$W$104,Y9))) -> 0 | AB8: 3 | AF8: 0 | AG8: 0 | AH8: 0 | AI8: 0 | AJ8: 0 | AL8: 1 | AM8: =IF(AL8="","",IF(AL8=$AM$4,INDEX($AJ$5:$AJ$104,AL8),INDEX($AJ$5:$AJ$104,AL9))) -> 0
B9: 4 | F9: 0 | G9: 0 | H9: 0 | I9: 0 | J9: 0 | L9: =IF(L8="","",(IF(L8=$M$4,"",IF(L8=L7,L8+1,L8)))) -> 1 | M9: =IF(L9="","",IF(L9=$M$4,INDEX($J$5:$J$104,L9),INDEX($J$5:$J$104,L10))) -> 0 | O9: 4 | S9: 0 | T9: 0 | U9: 0 | V9: 0 | W9: 0 | Y9: =IF(Y8="","",(IF(Y8=$Z$4,"",IF(Y8=Y7,Y8+1,Y8)))) -> 1 | Z9: 0 | AB9: 4 | AF9: 0 | AG9: 0 | AH9: 0 | AI9: 0 | AJ9: 0 | AL9: =IF(AL8="","",(IF(AL8=$Z$4,"",IF(AL8=AL7,AL8+1,AL8)))) -> 1 | AM9: 0
B10: 5 | F10: 0 | G10: 0 | H10: 0 | I10: 0 | J10: 0 | L10: =IF(L9="","",(IF(L9=$M$4,"",IF(L9=L8,L9+1,L9)))) -> 2 | M10: =IF(L10="","",IF(L10=$M$4,INDEX($J$5:$J$104,L10),INDEX($J$5:$J$104,L11))) -> 0 | O10: 5 | R10: ○ | S10: 0 | T10: 0 | U10: 571.7016931 | V10: 571.7016931 | W10: 571.7016931 | Y10: =IF(Y9="","",(IF(Y9=$Z$4,"",IF(Y9=Y8,Y9+1,Y9)))) -> 2 | Z10: 0 | AB10: 5 | AE10: ○ | AF10: 0 | AG10: 0 | AH10: 571.7016931 | AI10: 571.7016931 | AJ10: 571.7016931 | AL10: =IF(AL9="","",(IF(AL9=$Z$4,"",IF(AL9=AL8,AL9+1,AL9)))) -> 2 | AM10: 0
B11: 6 | F11: 0 | G11: 0 | H11: 0 | I11: 0 | J11: 0 | L11: 2 | M11: 0 | O11: 6 | S11: 0 | T11: 0 | U11: 0 | V11: 0 | W11: 571.7016931 | Y11: 2 | Z11: 0 | AB11: 6 | AF11: 0 | AG11: 0 | AH11: 0 | AI11: 0 | AJ11: 571.7016931 | AL11: 2 | AM11: 0
B12: 7 | F12: 0 | G12: 0 | H12: 0 | I12: 0 | J12: 0 | L12: 3 | M12: 0 | O12: 7 | S12: 0 | T12: 0 | U12: 0 | V12: 0 | W12: 571.7016931 | Y12: 3 | Z12: 0 | AB12: 7 | AF12: 0 | AG12: 0 | AH12: 0 | AI12: 0 | AJ12: 571.7016931 | AL12: 3 | AM12: 0
B13: 8 | F13: 0 | G13: 0 | H13: 0 | I13: 0 | J13: 0 | L13: 3 | M13: 0 | O13: 8 | S13: 0 | T13: 0 | U13: 0 | V13: 0 | W13: 571.7016931 | Y13: 3 | Z13: 0 | AB13: 8 | AF13: 0 | AG13: 0 | AH13: 0 | AI13: 0 | AJ13: 571.7016931 | AL13: 3 | AM13: 0
B14: 9 | F14: 0 | G14: 0 | H14: 0 | I14: 0 | J14: 0 | L14: 4 | M14: 0 | O14: 9 | S14: 0 | T14: 0 | U14: 0 | V14: 0 | W14: 571.7016931 | Y14: 4 | Z14: 0 | AB14: 9 | AF14: 0 | AG14: 0 | AH14: 0 | AI14: 0 | AJ14: 571.7016931 | AL14: 4 | AM14: 0
B15: 10 | F15: 0 | G15: 0 | H15: 0 | I15: 0 | J15: 0 | L15: 4 | M15: 0 | O15: 10 | R15: ○ | S15: 0 | T15: 0 | U15: 571.7016931 | V15: 571.7016931 | W15: 1143.403386 | Y15: 4 | Z15: 0 | AB15: 10 | AE15: ○ | AF15: 0 | AG15: 0 | AH15: 571.7016931 | AI15: 571.7016931 | AJ15: 1143.403386 | AL15: 4 | AM15: 0
B16: 11 | F16: 0 | G16: 0 | H16: 0 | I16: 0 | J16: 0 | L16: 5 | M16: 0 | O16: 11 | S16: 0 | T16: 0 | U16: 0 | V16: 0 | W16: 1143.403386 | Y16: 5 | Z16: 0 | AB16: 11 | AF16: 0 | AG16: 0 | AH16: 0 | AI16: 0 | AJ16: 1143.403386 | AL16: 5 | AM16: 0
B17: 12 | F17: 0 | G17: 0 | H17: 0 | I17: 0 | J17: 0 | L17: 5 | M17: 0 | O17: 12 | S17: 0 | T17: 0 | U17: 0 | V17: 0 | W17: 1143.403386 | Y17: 5 | Z17: 571.7016931 | AB17: 12 | AF17: 0 | AG17: 0 | AH17: 0 | AI17: 0 | AJ17: 1143.403386 | AL17: 5 | AM17: 571.7016931
B18: 13 | F18: 0 | G18: 0 | H18: 0 | I18: 0 | J18: 0 | L18: 6 | M18: 0 | O18: 13 | S18: 0 | T18: 0 | U18: 0 | V18: 0 | W18: 1143.403386 | Y18: 6 | Z18: 571.7016931 | AB18: 13 | AF18: 0 | AG18: 0 | AH18: 0 | AI18: 0 | AJ18: 1143.403386 | AL18: 6 | AM18: 571.7016931
B19: 14 | F19: 0 | G19: 0 | H19: 0 | I19: 0 | J19: 0 | L19: 6 | M19: 0 | O19: 14 | S19: 0 | T19: 0 | U19: 0 | V19: 0 | W19: 1143.403386 | Y19: 6 | Z19: 571.7016931 | AB19: 14 | AF19: 0 | AG19: 0 | AH19: 0 | AI19: 0 | AJ19: 1143.403386 | AL19: 6 | AM19: 571.7016931
B20: 15 | F20: 0 | G20: 0 | H20: 0 | I20: 0 | J20: 0 | L20: 7 | M20: 0 | O20: 15 | R20: ○ | S20: 0 | T20: 0 | U20: 571.7016931 | V20: 571.7016931 | W20: 1715.105079 | Y20: 7 | Z20: 571.7016931 | AB20: 15 | AE20: ○ | AF20: 0 | AG20: 0 | AH20: 571.7016931 | AI20: 571.7016931 | AJ20: 1715.105079 | AL20: 7 | AM20: 571.7016931
B21: 16 | F21: 0 | G21: 0 | H21: 0 | I21: 0 | J21: 0 | L21: 7 | M21: 0 | O21: 16 | S21: 0 | T21: 0 | U21: 0 | V21: 0 | W21: 1715.105079 | Y21: 7 | Z21: 571.7016931 | AB21: 16 | AF21: 0 | AG21: 0 | AH21: 0 | AI21: 0 | AJ21: 1715.105079 | AL21: 7 | AM21: 571.7016931
B22: 17 | F22: 0 | G22: 0 | H22: 0 | I22: 0 | J22: 0 | L22: 8 | M22: 0 | O22: 17 | S22: 0 | T22: 0 | U22: 0 | V22: 0 | W22: 1715.105079 | Y22: 8 | Z22: 571.7016931 | AB22: 17 | AF22: 0 | AG22: 0 | AH22: 0 | AI22: 0 | AJ22: 1715.105079 | AL22: 8 | AM22: 571.7016931
B23: 18 | F23: 0 | G23: 0 | H23: 0 | I23: 0 | J23: 0 | L23: 8 | M23: 0 | O23: 18 | S23: 0 | T23: 0 | U23: 0 | V23: 0 | W23: 1715.105079 | Y23: 8 | Z23: 571.7016931 | AB23: 18 | AF23: 0 | AG23: 0 | AH23: 0 | AI23: 0 | AJ23: 1715.105079 | AL23: 8 | AM23: 571.7016931
B24: 19 | F24: 0 | G24: 0 | H24: 0 | I24: 0 | J24: 0 | L24: 9 | M24: 0 | O24: 19 | S24: 0 | T24: 0 | U24: 0 | V24: 0 | W24: 1715.105079 | Y24: 9 | Z24: 571.7016931 | AB24: 19 | AF24: 0 | AG24: 0 | AH24: 0 | AI24: 0 | AJ24: 1715.105079 | AL24: 9 | AM24: 571.7016931
B25: 20 | F25: 0 | G25: 0 | H25: 0 | I25: 0 | J25: 0 | L25: 9 | M25: 0 | O25: 20 | R25: ○ | S25: 0 | T25: 0 | U25: 571.7016931 | V25: 571.7016931 | W25: 2286.806772 | Y25: 9 | Z25: 571.7016931 | AB25: 20 | AE25: ○ | AF25: 0 | AG25: 0 | AH25: 571.7016931 | AI25: 571.7016931 | AJ25: 2286.806772 | AL25: 9 | AM25: 571.7016931
B26: 21 | F26: 0 | G26: 0 | H26: 0 | I26: 0 | J26: 0 | L26: 10 | M26: 0 | O26: 21 | S26: 0 | T26: 0 | U26: 0 | V26: 0 | W26: 2286.806772 | Y26: 10 | Z26: 571.7016931 | AB26: 21 | AF26: 0 | AG26: 0 | AH26: 0 | AI26: 0 | AJ26: 2286.806772 | AL26: 10 | AM26: 571.7016931
B27: 22 | F27: 0 | G27: 0 | H27: 0 | I27: 0 | J27: 0 | L27: 10 | M27: 0 | O27: 22 | S27: 0 | T27: 0 | U27: 0 | V27: 0 | W27: 2286.806772 | Y27: 10 | Z27: 1143.403386 | AB27: 22 | AF27: 0 | AG27: 0 | AH27: 0 | AI27: 0 | AJ27: 2286.806772 | AL27: 10 | AM27: 1143.403386
B28: 23 | F28: 0 | G28: 0 | H28: 0 | I28: 0 | J28: 0 | L28: 11 | M28: 0 | O28: 23 | S28: 0 | T28: 0 | U28: 0 | V28: 0 | W28: 2286.806772 | Y28: 11 | Z28: 1143.403386 | AB28: 23 | AF28: 0 | AG28: 0 | AH28: 0 | AI28: 0 | AJ28: 2286.806772 | AL28: 11 | AM28: 1143.403386
B29: 24 | F29: 0 | G29: 0 | H29: 0 | I29: 0 | J29: 0 | L29: 11 | M29: 0 | O29: 24 | S29: 0 | T29: 0 | U29: 0 | V29: 0 | W29: 2286.806772 | Y29: 11 | Z29: 1143.403386 | AB29: 24 | AF29: 0 | AG29: 0 | AH29: 0 | AI29: 0 | AJ29: 2286.806772 | AL29: 11 | AM29: 1143.403386
B30: 25 | F30: 0 | G30: 0 | H30: 0 | I30: 0 | J30: 0 | L30: 12 | M30: 0 | O30: 25 | R30: ○ | S30: 0 | T30: 0 | U30: 571.7016931 | V30: 571.7016931 | W30: 2858.508465 | Y30: 12 | Z30: 1143.403386 | AB30: 25 | AE30: ○ | AF30: 0 | AG30: 0 | AH30: 571.7016931 | AI30: 571.7016931 | AJ30: 2858.508465 | AL30: 12 | AM30: 1143.403386
B31: 26 | F31: 0 | G31: 0 | H31: 0 | I31: 0 | J31: 0 | L31: 12 | M31: 0 | O31: 26 | S31: 0 | T31: 0 | U31: 0 | V31: 0 | W31: 2858.508465 | Y31: 12 | Z31: 1143.403386 | AB31: 26 | AF31: 0 | AG31: 0 | AH31: 0 | AI31: 0 | AJ31: 2858.508465 | AL31: 12 | AM31: 1143.403386
B32: 27 | F32: 0 | G32: 0 | H32: 0 | I32: 0 | J32: 0 | L32: 13 | M32: 0 | O32: 27 | S32: 0 | T32: 0 | U32: 0 | V32: 0 | W32: 2858.508465 | Y32: 13 | Z32: 1143.403386 | AB32: 27 | AF32: 0 | AG32: 0 | AH32: 0 | AI32: 0 | AJ32: 2858.508465 | AL32: 13 | AM32: 1143.403386
B33: 28 | F33: 0 | G33: 0 | H33: 0 | I33: 0 | J33: 0 | L33: 13 | M33: 0 | O33: 28 | S33: 0 | T33: 0 | U33: 0 | V33: 0 | W33: 2858.508465 | Y33: 13 | Z33: 1143.403386 | AB33: 28 | AF33: 0 | AG33: 0 | AH33: 0 | AI33: 0 | AJ33: 2858.508465 | AL33: 13 | AM33: 1143.403386
B34: 29 | F34: 0 | G34: 0 | H34: 0 | I34: 0 | J34: 0 | L34: 14 | M34: 0 | O34: 29 | S34: 0 | T34: 0 | U34: 0 | V34: 0 | W34: 2858.508465 | Y34: 14 | Z34: 1143.403386 | AB34: 29 | AF34: 0 | AG34: 0 | AH34: 0 | AI34: 0 | AJ34: 2858.508465 | AL34: 14 | AM34: 1143.403386
B35: 30 | F35: 0 | G35: 0 | H35: 0 | I35: 0 | J35: 0 | L35: 14 | M35: 0 | O35: 30 | Q35: ○ | S35: 0 | T35: 1441.091524 | U35: 0 | V35: 1441.091524 | W35: 4299.599989 | Y35: 14 | Z35: 1143.403386 | AB35: 30 | AD35: ○ | AF35: 0 | AG35: 1441.091524 | AH35: 0 | AI35: 1441.091524 | AJ35: 4299.599989 | AL35: 14 | AM35: 1143.403386
B36: 31 | F36: 0 | G36: 0 | H36: 0 | I36: 0 | J36: 0 | L36: 15 | M36: 0 | O36: 31 | S36: 0 | T36: 0 | U36: 0 | V36: 0 | W36: 4299.599989 | Y36: 15 | Z36: 1143.403386 | AB36: 31 | AF36: 0 | AG36: 0 | AH36: 0 | AI36: 0 | AJ36: 4299.599989 | AL36: 15 | AM36: 1143.403386
B37: 32 | F37: =IF(C37="○",VLOOKUP(F$4,_xlnm.Database,5,FALSE)/1000,0) -> 0 | G37: =IF(D37="○",VLOOKUP(G$4,_xlnm.Database,5,FALSE)/1000,0) -> 0 | H37: =IF(E37="○",VLOOKUP(H$4,_xlnm.Database,5,FALSE)/1000,0) -> 0 | I37: 0 | J37: 0 | L37: 15 | M37: 0 | O37: 32 | S37: =IF(P37="○",VLOOKUP(S$4,_xlnm.Database,5,FALSE)/1000,0) -> 0 | T37: =IF(Q37="○",VLOOKUP(T$4,_xlnm.Database,5,FALSE)/1000,0) -> 0 | U37: =IF(R37="○",VLOOKUP(U$4,_xlnm.Database,5,FALSE)/1000,0) -> 0 | V37: 0 | W37: 4299.599989 | Y37: 15 | Z37: 1715.105079 | AB37: 32 | AF37: =IF(AC37="○",VLOOKUP(AF$4,_xlnm.Database,5,FALSE)/1000,0) -> 0 | AG37: =IF(AD37="○",VLOOKUP(AG$4,_xlnm.Database,5,FALSE)/1000,0) -> 0 | AH37: =IF(AE37="○",VLOOKUP(AH$4,_xlnm.Database,5,FALSE)/1000,0) -> 0 | AI37: 0 | AJ37: 4299.599989 | AL37: 15 | AM37: 1715.105079
B38: 33 | F38: 0 | G38: 0 | H38: 0 | I38: 0 | J38: =+J37+I38 -> 0 | L38: 16 | M38: 0 | O38: 33 | S38: 0 | T38: 0 | U38: 0 | V38: 0 | W38: 4299.599989 | Y38: 16 | Z38: 1715.105079 | AB38: 33 | AF38: 0 | AG38: 0 | AH38: 0 | AI38: 0 | AJ38: 4299.599989 | AL38: 16 | AM38: 1715.105079
B39: 34 | F39: 0 | G39: 0 | H39: 0 | I39: 0 | J39: 0 | L39: 16 | M39: 0 | O39: 34 | S39: 0 | T39: 0 | U39: 0 | V39: 0 | W39: 4299.599989 | Y39: 16 | Z39: 1715.105079 | AB39: 34 | AF39: 0 | AG39: 0 | AH39: 0 | AI39: 0 | AJ39: 4299.599989 | AL39: 16 | AM39: 1715.105079
B40: 35 | F40: 0 | G40: 0 | H40: 0 | I40: 0 | J40: 0 | L40: 17 | M40: 0 | O40: 35 | R40: ○ | S40: 0 | T40: 0 | U40: 571.7016931 | V40: 571.7016931 | W40: 4871.301682 | Y40: 17 | Z40: 1715.105079 | AB40: 35 | AE40: ○ | AF40: 0 | AG40: 0 | AH40: 571.7016931 | AI40: 571.7016931 | AJ40: 4871.301682 | AL40: 17 | AM40: 1715.105079
B41: 36 | F41: 0 | G41: 0 | H41: 0 | I41: 0 | J41: 0 | L41: 17 | M41: 0 | O41: 36 | S41: 0 | T41: 0 | U41: 0 | V41: 0 | W41: 4871.301682 | Y41: 17 | Z41: 1715.105079 | AB41: 36 | AF41: 0 | AG41: 0 | AH41: 0 | AI41: 0 | AJ41: 4871.301682 | AL41: 17 | AM41: 1715.105079
B42: 37 | F42: 0 | G42: 0 | H42: 0 | I42: 0 | J42: 0 | L42: 18 | M42: 0 | O42: 37 | S42: 0 | T42: 0 | U42: 0 | V42: 0 | W42: 4871.301682 | Y42: 18 | Z42: 1715.105079 | AB42: 37 | AF42: 0 | AG42: 0 | AH42: 0 | AI42: 0 | AJ42: 4871.301682 | AL42: 18 | AM42: 1715.105079
B43: 38 | F43: 0 | G43: 0 | H43: 0 | I43: 0 | J43: 0 | L43: 18 | M43: 0 | O43: 38 | S43: 0 | T43: 0 | U43: 0 | V43: 0 | W43: 4871.301682 | Y43: 18 | Z43: 1715.105079 | AB43: 38 | AF43: 0 | AG43: 0 | AH43: 0 | AI43: 0 | AJ43: 4871.301682 | AL43: 18 | AM43: 1715.105079
B44: 39 | F44: 0 | G44: 0 | H44: 0 | I44: 0 | J44: 0 | L44: 19 | M44: 0 | O44: 39 | S44: 0 | T44: 0 | U44: 0 | V44: 0 | W44: 4871.301682 | Y44: 19 | Z44: 1715.105079 | AB44: 39 | AF44: 0 | AG44: 0 | AH44: 0 | AI44: 0 | AJ44: 4871.301682 | AL44: 19 | AM44: 1715.105079
B45: 40 | F45: 0 | G45: 0 | H45: 0 | I45: 0 | J45: 0 | L45: 19 | M45: 0 | O45: 40 | R45: ○ | S45: 0 | T45: 0 | U45: 571.7016931 | V45: 571.7016931 | W45: 5443.003376 | Y45: 19 | Z45: 1715.105079 | AB45: 40 | AE45: ○ | AF45: 0 | AG45: 0 | AH45: 571.7016931 | AI45: 571.7016931 | AJ45: 5443.003376 | AL45: 19 | AM45: 1715.105079
B46: 41 | F46: 0 | G46: 0 | H46: 0 | I46: 0 | J46: 0 | L46: 20 | M46: 0 | O46: 41 | S46: 0 | T46: 0 | U46: 0 | V46: 0 | W46: 5443.003376 | Y46: 20 | Z46: 1715.105079 | AB46: 41 | AF46: 0 | AG46: 0 | AH46: 0 | AI46: 0 | AJ46: 5443.003376 | AL46: 20 | AM46: 1715.105079
B47: 42 | F47: 0 | G47: 0 | H47: 0 | I47: 0 | J47: 0 | L47: 20 | M47: 0 | O47: 42 | S47: 0 | T47: 0 | U47: 0 | V47: 0 | W47: 5443.003376 | Y47: 20 | Z47: 2286.806772 | AB47: 42 | AF47: 0 | AG47: 0 | AH47: 0 | AI47: 0 | AJ47: 5443.003376 | AL47: 20 | AM47: 2286.806772
B48: 43 | F48: 0 | G48: 0 | H48: 0 | I48: 0 | J48: 0 | L48: 21 | M48: 0 | O48: 43 | S48: 0 | T48: 0 | U48: 0 | V48: 0 | W48: 5443.003376 | Y48: 21 | Z48: 2286.806772 | AB48: 43 | AF48: 0 | AG48: 0 | AH48: 0 | AI48: 0 | AJ48: 5443.003376 | AL48: 21 | AM48: 2286.806772
B49: 44 | F49: 0 | G49: 0 | H49: 0 | I49: 0 | J49: 0 | L49: 21 | M49: 0 | O49: 44 | S49: 0 | T49: 0 | U49: 0 | V49: 0 | W49: 5443.003376 | Y49: 21 | Z49: 2286.806772 | AB49: 44 | AF49: 0 | AG49: 0 | AH49: 0 | AI49: 0 | AJ49: 5443.003376 | AL49: 21 | AM49: 2286.806772
B50: 45 | C50: ○ | F50: 15850.00423 | G50: 0 | H50: 0 | I50: 15850.00423 | J50: 15850.00423 | L50: 22 | M50: 0 | O50: 45 | R50: ○ | S50: 0 | T50: 0 | U50: 571.7016931 | V50: 571.7016931 | W50: 6014.705069 | Y50: 22 | Z50: 2286.806772 | AB50: 45 | AE50: ○ | AF50: 0 | AG50: 0 | AH50: 571.7016931 | AI50: 571.7016931 | AJ50: 6014.705069 | AL50: 22 | AM50: 2286.806772
B51: 46 | F51: 0 | G51: 0 | H51: 0 | I51: 0 | J51: 15850.00423 | L51: 22 | M51: 0 | O51: 46 | S51: 0 | T51: 0 | U51: 0 | V51: 0 | W51: 6014.705069 | Y51: 22 | Z51: 2286.806772 | AB51: 46 | AF51: 0 | AG51: 0 | AH51: 0 | AI51: 0 | AJ51: 6014.705069 | AL51: 22 | AM51: 2286.806772
B52: 47 | F52: 0 | G52: 0 | H52: 0 | I52: 0 | J52: 15850.00423 | L52: 23 | M52: 0 | O52: 47 | S52: 0 | T52: 0 | U52: 0 | V52: 0 | W52: 6014.705069 | Y52: 23 | Z52: 2286.806772 | AB52: 47 | AF52: 0 | AG52: 0 | AH52: 0 | AI52: 0 | AJ52: 6014.705069 | AL52: 23 | AM52: 2286.806772
B53: 48 | F53: 0 | G53: 0 | H53: 0 | I53: 0 | J53: 15850.00423 | L53: 23 | M53: 0 | O53: 48 | S53: 0 | T53: 0 | U53: 0 | V53: 0 | W53: 6014.705069 | Y53: 23 | Z53: 2286.806772 | AB53: 48 | AF53: 0 | AG53: 0 | AH53: 0 | AI53: 0 | AJ53: 6014.705069 | AL53: 23 | AM53: 2286.806772
B54: 49 | F54: 0 | G54: 0 | H54: 0 | I54: 0 | J54: 15850.00423 | L54: 24 | M54: 0 | O54: 49 | S54: 0 | T54: 0 | U54: 0 | V54: 0 | W54: 6014.705069 | Y54: 24 | Z54: 2286.806772 | AB54: 49 | AF54: 0 | AG54: 0 | AH54: 0 | AI54: 0 | AJ54: 6014.705069 | AL54: 24 | AM54: 2286.806772
B55: 50 | F55: 0 | G55: 0 | H55: 0 | I55: 0 | J55: 15850.00423 | L55: 24 | M55: 0 | O55: 50 | R55: ○ | S55: 0 | T55: 0 | U55: 571.7016931 | V55: 571.7016931 | W55: 6586.406762 | Y55: 24 | Z55: 2286.806772 | AB55: 50 | AE55: ○ | AF55: 0 | AG55: 0 | AH55: 571.7016931 | AI55: 571.7016931 | AJ55: 6586.406762 | AL55: 24 | AM55: 2286.806772
B56: 51 | F56: 0 | G56: 0 | H56: 0 | I56: 0 | J56: 15850.00423 | L56: 25 | M56: 0 | O56: 51 | S56: 0 | T56: 0 | U56: 0 | V56: 0 | W56: 6586.406762 | Y56: 25 | Z56: 2286.806772 | AB56: 51 | AF56: 0 | AG56: 0 | AH56: 0 | AI56: 0 | AJ56: 6586.406762 | AL56: 25 | AM56: 2286.806772
B57: 52 | F57: 0 | G57: 0 | H57: 0 | I57: 0 | J57: 15850.00423 | L57: 25 | M57: 0 | O57: 52 | S57: 0 | T57: 0 | U57: 0 | V57: 0 | W57: 6586.406762 | Y57: 25 | Z57: 2858.508465 | AB57: 52 | AF57: 0 | AG57: 0 | AH57: 0 | AI57: 0 | AJ57: 6586.406762 | AL57: 25 | AM57: 2858.508465
B58: 53 | F58: 0 | G58: 0 | H58: 0 | I58: 0 | J58: 15850.00423 | L58: 26 | M58: 0 | O58: 53 | S58: 0 | T58: 0 | U58: 0 | V58: 0 | W58: 6586.406762 | Y58: 26 | Z58: 2858.508465 | AB58: 53 | AF58: 0 | AG58: 0 | AH58: 0 | AI58: 0 | AJ58: 6586.406762 | AL58: 26 | AM58: 2858.508465
B59: 54 | F59: 0 | G59: 0 | H59: 0 | I59: 0 | J59: 15850.00423 | L59: 26 | M59: 0 | O59: 54 | S59: 0 | T59: 0 | U59: 0 | V59: 0 | W59: 6586.406762 | Y59: 26 | Z59: 2858.508465 | AB59: 54 | AF59: 0 | AG59: 0 | AH59: 0 | AI59: 0 | AJ59: 6586.406762 | AL59: 26 | AM59: 2858.508465
B60: 55 | F60: 0 | G60: 0 | H60: 0 | I60: 0 | J60: 15850.00423 | L60: 27 | M60: 0 | O60: 55 | R60: ○ | S60: 0 | T60: 0 | U60: 571.7016931 | V60: 571.7016931 | W60: 7158.108455 | Y60: 27 | Z60: 2858.508465 | AB60: 55 | AE60: ○ | AF60: 0 | AG60: 0 | AH60: 571.7016931 | AI60: 571.7016931 | AJ60: 7158.108455 | AL60: 27 | AM60: 2858.508465
B61: 56 | F61: 0 | G61: 0 | H61: 0 | I61: 0 | J61: 15850.00423 | L61: 27 | M61: 0 | O61: 56 | S61: 0 | T61: 0 | U61: 0 | V61: 0 | W61: 7158.108455 | Y61: 27 | Z61: 2858.508465 | AB61: 56 | AF61: 0 | AG61: 0 | AH61: 0 | AI61: 0 | AJ61: 7158.108455 | AL61: 27 | AM61: 2858.508465
B62: 57 | F62: 0 | G62: 0 | H62: 0 | I62: 0 | J62: 15850.00423 | L62: 28 | M62: 0 | O62: 57 | S62: 0 | T62: 0 | U62: 0 | V62: 0 | W62: 7158.108455 | Y62: 28 | Z62: 2858.508465 | AB62: 57 | AF62: 0 | AG62: 0 | AH62: 0 | AI62: 0 | AJ62: 7158.108455 | AL62: 28 | AM62: 2858.508465
B63: 58 | F63: 0 | G63: 0 | H63: 0 | I63: 0 | J63: 15850.00423 | L63: 28 | M63: 0 | O63: 58 | S63: 0 | T63: 0 | U63: 0 | V63: 0 | W63: 7158.108455 | Y63: 28 | Z63: 2858.508465 | AB63: 58 | AF63: 0 | AG63: 0 | AH63: 0 | AI63: 0 | AJ63: 7158.108455 | AL63: 28 | AM63: 2858.508465
B64: 59 | F64: 0 | G64: 0 | H64: 0 | I64: 0 | J64: 15850.00423 | L64: 29 | M64: 0 | O64: 59 | S64: 0 | T64: 0 | U64: 0 | V64: 0 | W64: 7158.108455 | Y64: 29 | Z64: 2858.508465 | AB64: 59 | AF64: 0 | AG64: 0 | AH64: 0 | AI64: 0 | AJ64: 7158.108455 | AL64: 29 | AM64: 2858.508465
B65: 60 | F65: 0 | G65: 0 | H65: 0 | I65: 0 | J65: 15850.00423 | L65: 29 | M65: 0 | O65: 60 | P65: ○ | S65: 15850.00423 | T65: 0 | U65: 0 | V65: 15850.00423 | W65: 23008.11268 | Y65: 29 | Z65: 2858.508465 | AB65: 60 | AD65: ○ | AF65: 0 | AG65: 1441.091524 | AH65: 0 | AI65: 1441.091524 | AJ65: 8599.199979 | AL65: 29 | AM65: 2858.508465
B66: 61 | F66: 0 | G66: 0 | H66: 0 | I66: 0 | J66: 15850.00423 | L66: 30 | M66: 0 | O66: 61 | S66: 0 | T66: 0 | U66: 0 | V66: 0 | W66: 23008.11268 | Y66: 30 | Z66: 2858.508465 | AB66: 61 | AF66: 0 | AG66: 0 | AH66: 0 | AI66: 0 | AJ66: 8599.199979 | AL66: 30 | AM66: 2858.508465
B67: 62 | F67: 0 | G67: 0 | H67: 0 | I67: 0 | J67: 15850.00423 | L67: 30 | M67: 0 | O67: 62 | S67: 0 | T67: 0 | U67: 0 | V67: 0 | W67: 23008.11268 | Y67: 30 | Z67: 4299.599989 | AB67: 62 | AF67: 0 | AG67: 0 | AH67: 0 | AI67: 0 | AJ67: 8599.199979 | AL67: 30 | AM67: 4299.599989
B68: 63 | F68: 0 | G68: 0 | H68: 0 | I68: 0 | J68: 15850.00423 | L68: 31 | M68: 0 | O68: 63 | S68: 0 | T68: 0 | U68: 0 | V68: 0 | W68: 23008.11268 | Y68: 31 | Z68: 4299.599989 | AB68: 63 | AF68: 0 | AG68: 0 | AH68: 0 | AI68: 0 | AJ68: 8599.199979 | AL68: 31 | AM68: 4299.599989
B69: 64 | F69: =IF(C69="○",VLOOKUP(F$4,_xlnm.Database,5,FALSE)/1000,0) -> 0 | G69: =IF(D69="○",VLOOKUP(G$4,_xlnm.Database,5,FALSE)/1000,0) -> 0 | H69: =IF(E69="○",VLOOKUP(H$4,_xlnm.Database,5,FALSE)/1000,0) -> 0 | I69: 0 | J69: 15850.00423 | L69: 31 | M69: 0 | O69: 64 | S69: =IF(P69="○",VLOOKUP(S$4,_xlnm.Database,5,FALSE)/1000,0) -> 0 | T69: =IF(Q69="○",VLOOKUP(T$4,_xlnm.Database,5,FALSE)/1000,0) -> 0 | U69: =IF(R69="○",VLOOKUP(U$4,_xlnm.Database,5,FALSE)/1000,0) -> 0 | V69: 0 | W69: 23008.11268 | Y69: 31 | Z69: 4299.599989 | AB69: 64 | AF69: =IF(AC69="○",VLOOKUP(AF$4,_xlnm.Database,5,FALSE)/1000,0) -> 0 | AG69: =IF(AD69="○",VLOOKUP(AG$4,_xlnm.Database,5,FALSE)/1000,0) -> 0 | AH69: =IF(AE69="○",VLOOKUP(AH$4,_xlnm.Database,5,FALSE)/1000,0) -> 0 | AI69: 0 | AJ69: 8599.199979 | AL69: 31 | AM69: 4299.599989
B70: 65 | F70: 0 | G70: 0 | H70: 0 | I70: =SUM(F70:H70) -> 0 | J70: =+J69+I70 -> 15850.00423 | L70: 32 | M70: 0 | O70: 65 | R70: ○ | S70: 0 | T70: 0 | U70: 571.7016931 | V70: =SUM(S70:U70) -> 571.7016931 | W70: =+W69+V70 -> 23579.81438 | Y70: 32 | Z70: 4299.599989 | AB70: 65 | AE70: ○ | AF70: 0 | AG70: 0 | AH70: 571.7016931 | AI70: =SUM(AF70:AH70) -> 571.7016931 | AJ70: =+AJ69+AI70 -> 9170.901672 | AL70: 32 | AM70: 4299.599989
B71: =+B70+1 -> 66 | F71: 0 | G71: 0 | H71: 0 | I71: 0 | J71: 15850.00423 | L71: 32 | M71: 0 | O71: =+O70+1 -> 66 | S71: 0 | T71: 0 | U71: 0 | V71: 0 | W71: 23579.81438 | Y71: 32 | Z71: 4299.599989 | AB71: =+AB70+1 -> 66 | AF71: 0 | AG71: 0 | AH71: 0 | AI71: 0 | AJ71: 9170.901672 | AL71: 32 | AM71: 4299.599989
B72: 67 | F72: 0 | G72: 0 | H72: 0 | I72: 0 | J72: 15850.00423 | L72: 33 | M72: 0 | O72: 67 | S72: 0 | T72: 0 | U72: 0 | V72: 0 | W72: 23579.81438 | Y72: 33 | Z72: =IF(Y72="","",IF(Y72=$Z$4,INDEX($W$5:$W$104,Y72),INDEX($W$5:$W$104,Y73))) -> 4299.599989 | AB72: 67 | AF72: 0 | AG72: 0 | AH72: 0 | AI72: 0 | AJ72: 9170.901672 | AL72: 33 | AM72: =IF(AL72="","",IF(AL72=$AM$4,INDEX($AJ$5:$AJ$104,AL72),INDEX($AJ$5:$AJ$104,AL73))) -> 4299.599989
B73: 68 | F73: 0 | G73: 0 | H73: 0 | I73: 0 | J73: 15850.00423 | L73: 33 | M73: 0 | O73: 68 | S73: 0 | T73: 0 | U73: 0 | V73: 0 | W73: 23579.81438 | Y73: 33 | Z73: 4299.599989 | AB73: 68 | AF73: 0 | AG73: 0 | AH73: 0 | AI73: 0 | AJ73: 9170.901672 | AL73: 33 | AM73: 4299.599989
B74: 69 | F74: 0 | G74: 0 | H74: 0 | I74: 0 | J74: 15850.00423 | L74: =IF(L73="","",(IF(L73=$M$4,"",IF(L73=L72,L73+1,L73)))) -> 34 | M74: =IF(L74="","",IF(L74=$M$4,INDEX($J$5:$J$104,L74),INDEX($J$5:$J$104,L75))) -> 0 | O74: 69 | S74: 0 | T74: 0 | U74: 0 | V74: 0 | W74: 23579.81438 | Y74: =IF(Y73="","",(IF(Y73=$Z$4,"",IF(Y73=Y72,Y73+1,Y73)))) -> 34 | Z74: 4299.599989 | AB74: 69 | AF74: 0 | AG74: 0 | AH74: 0 | AI74: 0 | AJ74: 9170.901672 | AL74: =IF(AL73="","",(IF(AL73=$Z$4,"",IF(AL73=AL72,AL73+1,AL73)))) -> 34 | AM74: 4299.599989
B75: 70 | F75: 0 | G75: 0 | H75: 0 | I75: 0 | J75: 15850.00423 | L75: 34 | M75: 0 | O75: 70 | R75: ○ | S75: 0 | T75: 0 | U75: 571.7016931 | V75: 571.7016931 | W75: 24151.51607 | Y75: 34 | Z75: 4299.599989 | AB75: 70 | AE75: ○ | AF75: 0 | AG75: 0 | AH75: 571.7016931 | AI75: 571.7016931 | AJ75: 9742.603365 | AL75: 34 | AM75: 4299.599989
B76: 71 | F76: 0 | G76: 0 | H76: 0 | I76: 0 | J76: 15850.00423 | L76: 35 | M76: 0 | O76: 71 | S76: 0 | T76: 0 | U76: 0 | V76: 0 | W76: 24151.51607 | Y76: 35 | Z76: 4299.599989 | AB76: 71 | AF76: 0 | AG76: 0 | AH76: 0 | AI76: 0 | AJ76: 9742.603365 | AL76: 35 | AM76: 4299.599989
B77: 72 | F77: 0 | G77: 0 | H77: 0 | I77: 0 | J77: 15850.00423 | L77: 35 | M77: 0 | O77: 72 | S77: 0 | T77: 0 | U77: 0 | V77: 0 | W77: 24151.51607 | Y77: 35 | Z77: 4871.301682 | AB77: 72 | AF77: 0 | AG77: 0 | AH77: 0 | AI77: 0 | AJ77: 9742.603365 | AL77: 35 | AM77: 4871.301682
B78: 73 | F78: 0 | G78: 0 | H78: 0 | I78: 0 | J78: 15850.00423 | L78: 36 | M78: 0 | O78: 73 | S78: 0 | T78: 0 | U78: 0 | V78: 0 | W78: 24151.51607 | Y78: 36 | Z78: 4871.301682 | AB78: 73 | AF78: 0 | AG78: 0 | AH78: 0 | AI78: 0 | AJ78: 9742.603365 | AL78: 36 | AM78: 4871.301682
B79: 74 | F79: 0 | G79: 0 | H79: 0 | I79: 0 | J79: 15850.00423 | L79: 36 | M79: 0 | O79: 74 | S79: 0 | T79: 0 | U79: 0 | V79: 0 | W79: 24151.51607 | Y79: 36 | Z79: 4871.301682 | AB79: 74 | AF79: 0 | AG79: 0 | AH79: 0 | AI79: 0 | AJ79: 9742.603365 | AL79: 36 | AM79: 4871.301682
B80: 75 | F80: 0 | G80: 0 | H80: 0 | I80: 0 | J80: 15850.00423 | L80: 37 | M80: 0 | O80: 75 | R80: ○ | S80: 0 | T80: 0 | U80: 571.7016931 | V80: 571.7016931 | W80: 24723.21776 | Y80: 37 | Z80: 4871.301682 | AB80: 75 | AE80: ○ | AF80: 0 | AG80: 0 | AH80: 571.7016931 | AI80: 571.7016931 | AJ80: 10314.30506 | AL80: 37 | AM80: 4871.301682
B81: 76 | F81: 0 | G81: 0 | H81: 0 | I81: 0 | J81: 15850.00423 | L81: 37 | M81: 0 | O81: 76 | S81: 0 | T81: 0 | U81: 0 | V81: 0 | W81: 24723.21776 | Y81: 37 | Z81: 4871.301682 | AB81: 76 | AF81: 0 | AG81: 0 | AH81: 0 | AI81: 0 | AJ81: 10314.30506 | AL81: 37 | AM81: 4871.301682
B82: 77 | F82: 0 | G82: 0 | H82: 0 | I82: 0 | J82: 15850.00423 | L82: 38 | M82: 0 | O82: 77 | S82: 0 | T82: 0 | U82: 0 | V82: 0 | W82: 24723.21776 | Y82: 38 | Z82: 4871.301682 | AB82: 77 | AF82: 0 | AG82: 0 | AH82: 0 | AI82: 0 | AJ82: 10314.30506 | AL82: 38 | AM82: 4871.301682
B83: 78 | F83: 0 | G83: 0 | H83: 0 | I83: 0 | J83: 15850.00423 | L83: 38 | M83: 0 | O83: 78 | S83: 0 | T83: 0 | U83: 0 | V83: 0 | W83: 24723.21776 | Y83: 38 | Z83: 4871.301682 | AB83: 78 | AF83: 0 | AG83: 0 | AH83: 0 | AI83: 0 | AJ83: 10314.30506 | AL83: 38 | AM83: 4871.301682
B84: 79 | F84: 0 | G84: 0 | H84: 0 | I84: 0 | J84: 15850.00423 | L84: 39 | M84: 0 | O84: 79 | S84: 0 | T84: 0 | U84: 0 | V84: 0 | W84: 24723.21776 | Y84: 39 | Z84: 4871.301682 | AB84: 79 | AF84: 0 | AG84: 0 | AH84: 0 | AI84: 0 | AJ84: 10314.30506 | AL84: 39 | AM84: 4871.301682
B85: 80 | F85: 0 | G85: 0 | H85: 0 | I85: 0 | J85: 15850.00423 | L85: 39 | M85: 0 | O85: 80 | R85: ○ | S85: 0 | T85: 0 | U85: 571.7016931 | V85: 571.7016931 | W85: 25294.91946 | Y85: 39 | Z85: 4871.301682 | AB85: 80 | AE85: ○ | AF85: 0 | AG85: 0 | AH85: 571.7016931 | AI85: 571.7016931 | AJ85: 10886.00675 | AL85: 39 | AM85: 4871.301682
B86: 81 | F86: 0 | G86: 0 | H86: 0 | I86: 0 | J86: 15850.00423 | L86: 40 | M86: 0 | O86: 81 | S86: 0 | T86: 0 | U86: 0 | V86: 0 | W86: 25294.91946 | Y86: 40 | Z86: 4871.301682 | AB86: 81 | AF86: 0 | AG86: 0 | AH86: 0 | AI86: 0 | AJ86: 10886.00675 | AL86: 40 | AM86: 4871.301682
B87: 82 | F87: 0 | G87: 0 | H87: 0 | I87: 0 | J87: 15850.00423 | L87: 40 | M87: 0 | O87: 82 | S87: 0 | T87: 0 | U87: 0 | V87: 0 | W87: 25294.91946 | Y87: 40 | Z87: 5443.003376 | AB87: 82 | AF87: 0 | AG87: 0 | AH87: 0 | AI87: 0 | AJ87: 10886.00675 | AL87: 40 | AM87: 5443.003376
B88: 83 | F88: 0 | G88: 0 | H88: 0 | I88: 0 | J88: 15850.00423 | L88: 41 | M88: 0 | O88: 83 | S88: 0 | T88: 0 | U88: 0 | V88: 0 | W88: 25294.91946 | Y88: 41 | Z88: 5443.003376 | AB88: 83 | AF88: 0 | AG88: 0 | AH88: 0 | AI88: 0 | AJ88: 10886.00675 | AL88: 41 | AM88: 5443.003376
B89: 84 | F89: 0 | G89: 0 | H89: 0 | I89: 0 | J89: 15850.00423 | L89: 41 | M89: 0 | O89: 84 | S89: 0 | T89: 0 | U89: 0 | V89: 0 | W89: 25294.91946 | Y89: 41 | Z89: 5443.003376 | AB89: 84 | AF89: 0 | AG89: 0 | AH89: 0 | AI89: 0 | AJ89: 10886.00675 | AL89: 41 | AM89: 5443.003376
B90: 85 | F90: 0 | G90: 0 | H90: 0 | I90: 0 | J90: 15850.00423 | L90: 42 | M90: 0 | O90: 85 | R90: ○ | S90: 0 | T90: 0 | U90: 571.7016931 | V90: 571.7016931 | W90: 25866.62115 | Y90: 42 | Z90: 5443.003376 | AB90: 85 | AE90: ○ | AF90: 0 | AG90: 0 | AH90: 571.7016931 | AI90: 571.7016931 | AJ90: 11457.70844 | AL90: 42 | AM90: 5443.003376
B91: 86 | F91: 0 | G91: 0 | H91: 0 | I91: 0 | J91: 15850.00423 | L91: 42 | M91: 0 | O91: 86 | S91: 0 | T91: 0 | U91: 0 | V91: 0 | W91: 25866.62115 | Y91: 42 | Z91: 5443.003376 | AB91: 86 | AF91: 0 | AG91: 0 | AH91: 0 | AI91: 0 | AJ91: 11457.70844 | AL91: 42 | AM91: 5443.003376
B92: 87 | F92: 0 | G92: 0 | H92: 0 | I92: 0 | J92: 15850.00423 | L92: 43 | M92: 0 | O92: 87 | S92: 0 | T92: 0 | U92: 0 | V92: 0 | W92: 25866.62115 | Y92: 43 | Z92: 5443.003376 | AB92: 87 | AF92: 0 | AG92: 0 | AH92: 0 | AI92: 0 | AJ92: 11457.70844 | AL92: 43 | AM92: 5443.003376
B93: 88 | F93: 0 | G93: 0 | H93: 0 | I93: 0 | J93: 15850.00423 | L93: 43 | M93: 0 | O93: 88 | S93: 0 | T93: 0 | U93: 0 | V93: 0 | W93: 25866.62115 | Y93: 43 | Z93: 5443.003376 | AB93: 88 | AF93: 0 | AG93: 0 | AH93: 0 | AI93: 0 | AJ93: 11457.70844 | AL93: 43 | AM93: 5443.003376
B94: 89 | F94: 0 | G94: 0 | H94: 0 | I94: 0 | J94: 15850.00423 | L94: 44 | M94: 0 | O94: 89 | S94: 0 | T94: 0 | U94: 0 | V94: 0 | W94: 25866.62115 | Y94: 44 | Z94: 5443.003376 | AB94: 89 | AF94: 0 | AG94: 0 | AH94: 0 | AI94: 0 | AJ94: 11457.70844 | AL94: 44 | AM94: 5443.003376
B95: 90 | C95: ○ | F95: 15850.00423 | G95: 0 | H95: 0 | I95: 15850.00423 | J95: 31700.00846 | L95: 44 | M95: 0 | O95: 90 | Q95: ○ | S95: 0 | T95: 1441.091524 | U95: 0 | V95: 1441.091524 | W95: 27307.71267 | Y95: 44 | Z95: 5443.003376 | AB95: 90 | AD95: ○ | AF95: 0 | AG95: 1441.091524 | AH95: 0 | AI95: 1441.091524 | AJ95: 12898.79997 | AL95: 44 | AM95: 5443.003376
B96: 91 | F96: 0 | G96: 0 | H96: 0 | I96: 0 | J96: 31700.00846 | L96: 45 | M96: 0 | O96: 91 | S96: 0 | T96: 0 | U96: 0 | V96: 0 | W96: 27307.71267 | Y96: 45 | Z96: 5443.003376 | AB96: 91 | AF96: 0 | AG96: 0 | AH96: 0 | AI96: 0 | AJ96: 12898.79997 | AL96: 45 | AM96: 5443.003376
B97: 92 | F97: 0 | G97: 0 | H97: 0 | I97: 0 | J97: 31700.00846 | L97: 45 | M97: 15850.00423 | O97: 92 | S97: 0 | T97: 0 | U97: 0 | V97: 0 | W97: 27307.71267 | Y97: 45 | Z97: 6014.705069 | AB97: 92 | AF97: 0 | AG97: 0 | AH97: 0 | AI97: 0 | AJ97: 12898.79997 | AL97: 45 | AM97: 6014.705069
B98: 93 | F98: 0 | G98: 0 | H98: 0 | I98: 0 | J98: 31700.00846 | L98: 46 | M98: 15850.00423 | O98: 93 | S98: 0 | T98: 0 | U98: 0 | V98: 0 | W98: 27307.71267 | Y98: 46 | Z98: 6014.705069 | AB98: 93 | AF98: 0 | AG98: 0 | AH98: 0 | AI98: 0 | AJ98: 12898.79997 | AL98: 46 | AM98: 6014.705069
B99: 94 | F99: 0 | G99: 0 | H99: 0 | I99: 0 | J99: 31700.00846 | L99: 46 | M99: 15850.00423 | O99: 94 | S99: 0 | T99: 0 | U99: 0 | V99: 0 | W99: 27307.71267 | Y99: 46 | Z99: 6014.705069 | AB99: 94 | AF99: 0 | AG99: 0 | AH99: 0 | AI99: 0 | AJ99: 12898.79997 | AL99: 46 | AM99: 6014.705069
B100: 95 | F100: 0 | G100: 0 | H100: 0 | I100: 0 | J100: 31700.00846 | L100: 47 | M100: 15850.00423 | O100: 95 | R100: ○ | S100: 0 | T100: 0 | U100: 571.7016931 | V100: 571.7016931 | W100: 27879.41437 | Y100: 47 | Z100: 6014.705069 | AB100: 95 | AE100: ○ | AF100: 0 | AG100: 0 | AH100: 571.7016931 | AI100: 571.7016931 | AJ100: 13470.50166 | AL100: 47 | AM100: 6014.705069
B101: 96 | F101: 0 | G101: 0 | H101: 0 | I101: 0 | J101: 31700.00846 | L101: 47 | M101: 15850.00423 | O101: 96 | S101: 0 | T101: 0 | U101: 0 | V101: 0 | W101: 27879.41437 | Y101: 47 | Z101: 6014.705069 | AB101: 96 | AF101: 0 | AG101: 0 | AH101: 0 | AI101: 0 | AJ101: 13470.50166 | AL101: 47 | AM101: 6014.705069
B102: 97 | F102: 0 | G102: 0 | H102: 0 | I102: 0 | J102: =+J101+I102 -> 31700.00846 | L102: 48 | M102: 15850.00423 | O102: 97 | S102: 0 | T102: 0 | U102: 0 | V102: 0 | W102: 27879.41437 | Y102: 48 | Z102: 6014.705069 | AB102: 97 | AF102: 0 | AG102: 0 | AH102: 0 | AI102: 0 | AJ102: 13470.50166 | AL102: 48 | AM102: 6014.705069
B103: 98 | F103: 0 | G103: 0 | H103: 0 | I103: 0 | J103: 31700.00846 | L103: 48 | M103: 15850.00423 | O103: 98 | S103: 0 | T103: 0 | U103: 0 | V103: 0 | W103: 27879.41437 | Y103: 48 | Z103: 6014.705069 | AB103: 98 | AF103: 0 | AG103: 0 | AH103: 0 | AI103: 0 | AJ103: 13470.50166 | AL103: 48 | AM103: 6014.705069
B104: 99 | F104: 0 | G104: 0 | H104: 0 | I104: 0 | J104: 31700.00846 | L104: 49 | M104: 15850.00423 | O104: 99 | S104: 0 | T104: 0 | U104: 0 | V104: 0 | W104: 27879.41437 | Y104: 49 | Z104: 6014.705069 | AB104: 99 | AF104: 0 | AG104: 0 | AH104: 0 | AI104: 0 | AJ104: 13470.50166 | AL104: 49 | AM104: 6014.705069
B105: 合 計 | C105: =COUNTIF(C5:C104,"○") -> 2 | D105: =COUNTIF(D5:D104,"○") -> 0 | E105: =COUNTIF(E5:E104,"○") -> 0 | F105: =SUM(F5:F104) -> 31700.00846 | G105: =SUM(G5:G104) -> 0 | H105: 0 | I105: 31700.00846 | L105: 49 | M105: 15850.00423 | O105: 合 計 | P105: =COUNTIF(P5:P104,"○") -> 1 | Q105: =COUNTIF(Q5:Q104,"○") -> 2 | R105: =COUNTIF(R5:R104,"○") -> 16 | S105: =SUM(S5:S104) -> 15850.00423 | T105: =SUM(T5:T104) -> 2882.183048 | U105: 9147.227089 | V105: 27879.41437 | Y105: 49 | Z105: 6014.705069 | AB105: 合 計 | AC105: =COUNTIF(AC5:AC104,"○") -> 0 | AD105: =COUNTIF(AD5:AD104,"○") -> 3 | AE105: =COUNTIF(AE5:AE104,"○") -> 16 | AF105: =SUM(AF5:AF104) -> 0 | AG105: =SUM(AG5:AG104) -> 4323.274572 | AH105: 9147.227089 | AI105: 13470.50166 | AL105: 49 | AM105: 6014.705069
B106: * | C106: * | D106: * | E106: * | F106: * | G106: * | H106: * | I106: * | J106: * | L106: 50 | M106: 15850.00423 | O106: * | P106: * | Q106: * | R106: * | S106: * | T106: * | U106: * | V106: * | W106: * | Y106: 50 | Z106: 6014.705069 | AB106: * | AC106: * | AD106: * | AE106: * | AF106: * | AG106: * | AH106: * | AI106: * | AJ106: * | AL106: 50 | AM106: 6014.705069
L107: 50 | M107: 15850.00423 | Y107: 50 | Z107: 6586.406762 | AL107: 50 | AM107: 6586.406762
L108: 51 | M108: 15850.00423 | Y108: 51 | Z108: 6586.406762 | AL108: 51 | AM108: 6586.406762
L109: 51 | M109: 15850.00423 | Y109: 51 | Z109: 6586.406762 | AL109: 51 | AM109: 6586.406762
L110: 52 | M110: 15850.00423 | Y110: 52 | Z110: 6586.406762 | AL110: 52 | AM110: 6586.406762
L111: 52 | M111: 15850.00423 | Y111: 52 | Z111: 6586.406762 | AL111: 52 | AM111: 6586.406762
L112: 53 | M112: 15850.00423 | Y112: 53 | Z112: 6586.406762 | AL112: 53 | AM112: 6586.406762
L113: 53 | M113: 15850.00423 | Y113: 53 | Z113: 6586.406762 | AL113: 53 | AM113: 6586.406762
L114: 54 | M114: 15850.00423 | Y114: 54 | Z114: 6586.406762 | AL114: 54 | AM114: 6586.406762
L115: =IF(L114="","",(IF(L114=$M$4,"",IF(L114=L113,L114+1,L114)))) -> 54 | M115: 15850.00423 | Y115: 54 | Z115: 6586.406762 | AL115: 54 | AM115: 6586.406762
L116: 55 | M116: 15850.00423 | Y116: 55 | Z116: 6586.406762 | AL116: 55 | AM116: 6586.406762
L117: =IF(L116="","",(IF(L116=$M$4,"",IF(L116=L115,L116+1,L116)))) -> 55 | M117: 15850.00423 | Y117: 55 | Z117: 7158.108455 | AL117: 55 | AM117: 7158.108455
L118: 56 | M118: 15850.00423 | Y118: 56 | Z118: 7158.108455 | AL118: 56 | AM118: 7158.108455
L119: =IF(L118="","",(IF(L118=$M$4,"",IF(L118=L117,L118+1,L118)))) -> 56 | M119: 15850.00423 | Y119: 56 | Z119: 7158.108455 | AL119: 56 | AM119: 7158.108455
L120: 57 | M120: 15850.00423 | Y120: 57 | Z120: 7158.108455 | AL120: 57 | AM120: 7158.108455
L121: 57 | M121: 15850.00423 | Y121: 57 | Z121: 7158.108455 | AL121: 57 | AM121: 7158.108455
L122: 58 | M122: 15850.00423 | Y122: 58 | Z122: 7158.108455 | AL122: 58 | AM122: 7158.108455
L123: 58 | M123: 15850.00423 | Y123: 58 | Z123: 7158.108455 | AL123: 58 | AM123: 7158.108455
L124: 59 | M124: 15850.00423 | Y124: 59 | Z124: 7158.108455 | AL124: 59 | AM124: 7158.108455
L125: 59 | M125: 15850.00423 | Y125: 59 | Z125: 7158.108455 | AL125: 59 | AM125: 7158.108455
L126: 60 | M126: 15850.00423 | Y126: 60 | Z126: 7158.108455 | AL126: 60 | AM126: 7158.108455
L127: 60 | M127: 15850.00423 | Y127: 60 | Z127: 23008.11268 | AL127: 60 | AM127: 8599.199979
L128: 61 | M128: 15850.00423 | Y128: 61 | Z128: 23008.11268 | AL128: 61 | AM128: 8599.199979
L129: 61 | M129: 15850.00423 | Y129: 61 | Z129: 23008.11268 | AL129: 61 | AM129: 8599.199979
L130: 62 | M130: 15850.00423 | Y130: 62 | Z130: 23008.11268 | AL130: 62 | AM130: 8599.199979
L131: 62 | M131: 15850.00423 | Y131: 62 | Z131: 23008.11268 | AL131: 62 | AM131: 8599.199979
L132: 63 | M132: 15850.00423 | Y132: 63 | Z132: 23008.11268 | AL132: 63 | AM132: 8599.199979
L133: 63 | M133: 15850.00423 | Y133: 63 | Z133: 23008.11268 | AL133: 63 | AM133: 8599.199979
L134: 64 | M134: 15850.00423 | Y134: 64 | Z134: 23008.11268 | AL134: 64 | AM134: 8599.199979
L135: 64 | M135: 15850.00423 | Y135: 64 | Z135: 23008.11268 | AL135: 64 | AM135: 8599.199979
L136: 65 | M136: 15850.00423 | Y136: 65 | Z136: =IF(Y136="","",IF(Y136=$Z$4,INDEX($W$5:$W$104,Y136),INDEX($W$5:$W$104,Y137))) -> 23008.11268 | AL136: 65 | AM136: =IF(AL136="","",IF(AL136=$AM$4,INDEX($AJ$5:$AJ$104,AL136),INDEX($AJ$5:$AJ$104,AL137))) -> 8599.199979
L137: 65 | M137: 15850.00423 | Y137: 65 | Z137: 23579.81438 | AL137: 65 | AM137: 9170.901672
L138: 66 | M138: =IF(L138="","",IF(L138=$M$4,INDEX($J$5:$J$104,L138),INDEX($J$5:$J$104,L139))) -> 15850.00423 | Y138: =IF(Y137="","",(IF(Y137=$Z$4,"",IF(Y137=Y136,Y137+1,Y137)))) -> 66 | Z138: 23579.81438 | AL138: =IF(AL137="","",(IF(AL137=$Z$4,"",IF(AL137=AL136,AL137+1,AL137)))) -> 66 | AM138: 9170.901672
L139: 66 | M139: 15850.00423 | Y139: 66 | Z139: 23579.81438 | AL139: 66 | AM139: 9170.901672
L140: 67 | M140: 15850.00423 | Y140: 67 | Z140: 23579.81438 | AL140: 67 | AM140: 9170.901672
L141: 67 | M141: 15850.00423 | Y141: 67 | Z141: 23579.81438 | AL141: 67 | AM141: 9170.901672
L142: 68 | M142: 15850.00423 | Y142: 68 | Z142: 23579.81438 | AL142: 68 | AM142: 9170.901672
L143: 68 | M143: 15850.00423 | Y143: 68 | Z143: 23579.81438 | AL143: 68 | AM143: 9170.901672
L144: 69 | M144: 15850.00423 | Y144: 69 | Z144: 23579.81438 | AL144: 69 | AM144: 9170.901672
L145: 69 | M145: 15850.00423 | Y145: 69 | Z145: 23579.81438 | AL145: 69 | AM145: 9170.901672
L146: 70 | M146: 15850.00423 | Y146: 70 | Z146: 23579.81438 | AL146: 70 | AM146: 9170.901672
L147: 70 | M147: 15850.00423 | Y147: 70 | Z147: 24151.51607 | AL147: 70 | AM147: 9742.603365
L148: 71 | M148: 15850.00423 | Y148: 71 | Z148: 24151.51607 | AL148: 71 | AM148: 9742.603365
L149: 71 | M149: 15850.00423 | Y149: 71 | Z149: 24151.51607 | AL149: 71 | AM149: 9742.603365
L150: 72 | M150: 15850.00423 | Y150: 72 | Z150: 24151.51607 | AL150: 72 | AM150: 9742.603365
L151: 72 | M151: 15850.00423 | Y151: 72 | Z151: 24151.51607 | AL151: 72 | AM151: 9742.603365
L152: 73 | M152: 15850.00423 | Y152: 73 | Z152: 24151.51607 | AL152: 73 | AM152: 9742.603365
L153: 73 | M153: 15850.00423 | Y153: 73 | Z153: 24151.51607 | AL153: 73 | AM153: 9742.603365
L154: 74 | M154: 15850.00423 | Y154: 74 | Z154: 24151.51607 | AL154: 74 | AM154: 9742.603365
L155: 74 | M155: 15850.00423 | Y155: 74 | Z155: 24151.51607 | AL155: 74 | AM155: 9742.603365
L156: 75 | M156: 15850.00423 | Y156: 75 | Z156: 24151.51607 | AL156: 75 | AM156: 9742.603365
L157: 75 | M157: 15850.00423 | Y157: 75 | Z157: 24723.21776 | AL157: 75 | AM157: 10314.30506
L158: 76 | M158: 15850.00423 | Y158: 76 | Z158: 24723.21776 | AL158: 76 | AM158: 10314.30506
L159: 76 | M159: 15850.00423 | Y159: 76 | Z159: 24723.21776 | AL159: 76 | AM159: 10314.30506
L160: 77 | M160: 15850.00423 | Y160: 77 | Z160: 24723.21776 | AL160: 77 | AM160: 10314.30506
L161: 77 | M161: 15850.00423 | Y161: 77 | Z161: 24723.21776 | AL161: 77 | AM161: 10314.30506
L162: 78 | M162: 15850.00423 | Y162: 78 | Z162: 24723.21776 | AL162: 78 | AM162: 10314.30506
L163: 78 | M163: 15850.00423 | Y163: 78 | Z163: 24723.21776 | AL163: 78 | AM163: 10314.30506
L164: 79 | M164: 15850.00423 | Y164: 79 | Z164: 24723.21776 | AL164: 79 | AM164: 10314.30506
L165: 79 | M165: 15850.00423 | Y165: 79 | Z165: 24723.21776 | AL165: 79 | AM165: 10314.30506
L166: 80 | M166: 15850.00423 | Y166: 80 | Z166: 24723.21776 | AL166: 80 | AM166: 10314.30506
L167: 80 | M167: 15850.00423 | Y167: 80 | Z167: 25294.91946 | AL167: 80 | AM167: 10886.00675
L168: 81 | M168: 15850.00423 | Y168: 81 | Z168: 25294.91946 | AL168: 81 | AM168: 10886.00675
L169: 81 | M169: 15850.00423 | Y169: 81 | Z169: 25294.91946 | AL169: 81 | AM169: 10886.00675
L170: 82 | M170: 15850.00423 | Y170: 82 | Z170: 25294.91946 | AL170: 82 | AM170: 10886.00675
L171: 82 | M171: 15850.00423 | Y171: 82 | Z171: 25294.91946 | AL171: 82 | AM171: 10886.00675
L172: 83 | M172: 15850.00423 | Y172: 83 | Z172: 25294.91946 | AL172: 83 | AM172: 10886.00675
L173: 83 | M173: 15850.00423 | Y173: 83 | Z173: 25294.91946 | AL173: 83 | AM173: 10886.00675
L174: 84 | M174: 15850.00423 | Y174: 84 | Z174: 25294.91946 | AL174: 84 | AM174: 10886.00675
L175: 84 | M175: 15850.00423 | Y175: 84 | Z175: 25294.91946 | AL175: 84 | AM175: 10886.00675
L176: 85 | M176: 15850.00423 | Y176: 85 | Z176: 25294.91946 | AL176: 85 | AM176: 10886.00675
L177: 85 | M177: 15850.00423 | Y177: 85 | Z177: 25866.62115 | AL177: 85 | AM177: 11457.70844
L178: 86 | M178: 15850.00423 | Y178: 86 | Z178: 25866.62115 | AL178: 86 | AM178: 11457.70844
L179: 86 | M179: 15850.00423 | Y179: 86 | Z179: 25866.62115 | AL179: 86 | AM179: 11457.70844
L180: 87 | M180: 15850.00423 | Y180: 87 | Z180: 25866.62115 | AL180: 87 | AM180: 11457.70844
L181: 87 | M181: 15850.00423 | Y181: 87 | Z181: 25866.62115 | AL181: 87 | AM181: 11457.70844
L182: 88 | M182: 15850.00423 | Y182: 88 | Z182: 25866.62115 | AL182: 88 | AM182: 11457.70844
L183: =IF(L182="","",(IF(L182=$M$4,"",IF(L182=L181,L182+1,L182)))) -> 88 | M183: 15850.00423 | Y183: 88 | Z183: 25866.62115 | AL183: 88 | AM183: 11457.70844
L184: 89 | M184: 15850.00423 | Y184: 89 | Z184: 25866.62115 | AL184: 89 | AM184: 11457.70844
L185: 89 | M185: 15850.00423 | Y185: 89 | Z185: 25866.62115 | AL185: 89 | AM185: 11457.70844
L186: 90 | M186: 15850.00423 | Y186: 90 | Z186: 25866.62115 | AL186: 90 | AM186: 11457.70844
L187: 90 | M187: 31700.00846 | Y187: 90 | Z187: 27307.71267 | AL187: 90 | AM187: 12898.79997
L188: 91 | M188: 31700.00846 | Y188: 91 | Z188: 27307.71267 | AL188: 91 | AM188: 12898.79997
L189: 91 | M189: 31700.00846 | Y189: 91 | Z189: 27307.71267 | AL189: 91 | AM189: 12898.79997
L190: 92 | M190: 31700.00846 | Y190: 92 | Z190: 27307.71267 | AL190: 92 | AM190: 12898.79997
L191: 92 | M191: 31700.00846 | Y191: 92 | Z191: 27307.71267 | AL191: 92 | AM191: 12898.79997
L192: 93 | M192: 31700.00846 | Y192: 93 | Z192: 27307.71267 | AL192: 93 | AM192: 12898.79997
L193: 93 | M193: 31700.00846 | Y193: 93 | Z193: 27307.71267 | AL193: 93 | AM193: 12898.79997
L194: 94 | M194: 31700.00846 | Y194: 94 | Z194: 27307.71267 | AL194: 94 | AM194: 12898.79997
L195: 94 | M195: 31700.00846 | Y195: 94 | Z195: 27307.71267 | AL195: 94 | AM195: 12898.79997
L196: 95 | M196: 31700.00846 | Y196: 95 | Z196: 27307.71267 | AL196: 95 | AM196: 12898.79997
L197: 95 | M197: 31700.00846 | Y197: 95 | Z197: 27879.41437 | AL197: 95 | AM197: 13470.50166
L198: =IF(L197="","",(IF(L197=$M$4,"",IF(L197=L196,L197+1,L197)))) -> 96 | M198: 31700.00846 | Y198: 96 | Z198: 27879.41437 | AL198: 96 | AM198: 13470.50166
L199: 96 | M199: 31700.00846 | Y199: 96 | Z199: 27879.41437 | AL199: 96 | AM199: 13470.50166
L200: 97 | M200: 31700.00846 | Y200: 97 | Z200: =IF(Y200="","",IF(Y200=$Z$4,INDEX($W$5:$W$104,Y200),INDEX($W$5:$W$104,Y201))) -> 27879.41437 | AL200: 97 | AM200: =IF(AL200="","",IF(AL200=$AM$4,INDEX($AJ$5:$AJ$104,AL200),INDEX($AJ$5:$AJ$104,AL201))) -> 13470.50166
... 7 more rows

Sheet DB
B1: ■データベース
B3: 塗装仕様 | H3: 基本情報
B4: 形式 | C4: 塗料費 | D4: 材工 | E4: 単価 | F4: 備考 | H4: 橋梁形式 | I4: 鈑桁橋 | J4: 箱桁橋
C5: （円/m2） | D5: （円/m2） | E5: （円/m2） | H5: 床版との結合 | I5: 非合成 | J5: 合成
B6: Rc-Ⅰ | C6: 7375 | D6: 3637 | E6: =+C6+D6 -> 11012 | H6: 径間数 | I6: 単純 | J6: 連続
B7: Rc-Ⅲ | C7: 3075 | D7: 0 | E7: =+C7+D7 -> 3075 | H7: 周辺環境 | I7: 普通環境 | J7: 劣悪環境
B8: 点検時塗装① | C8: 12333 | D8: 0 | E8: =+C8+D8 -> 12333 | F8: 2液性ｴﾎﾟｷｼ樹脂塗料 | G8: ※NEXT | H8: 塗替え方法 | I8: 全面塗替え | J8: 部分塗替え | K8: 点検時塗装
B9: 点検時塗装② | C9: 1850 | D9: 0 | E9: 1850 | F9: 1液性ｴﾎﾟｷｼ樹脂塗料 | G9: ※SRI
B10: 点検時塗装③ | C10: 2595 | D10: 0 | E10: 2595 | F10: 2液性ｴﾎﾟｷｼ樹脂防錆剤 | G10: ※ｻﾋﾞｯﾄﾒﾝﾄ
H12: 塗替えサイクル
H13: 塗装方法 | I13: 仕様 | J13: 環境 | K13: 検索値 | L13: サイクル (年)
B15: 足場設置 | H15: 全面塗替え | I15: Rc-Ⅰ | J15: 普通環境 | K15: 111 | L15: 35
B16: 形式 | C16: 単価 | H16: 全面塗替え | I16: Rc-Ⅰ | J16: 劣悪環境 | K16: 112 | L16: 20
C17: （円/m2） | H17: 全面塗替え | I17: Rc-Ⅲ | J17: 普通環境 | K17: 121 | L17: 35
B18: なし | C18: 0 | H18: 全面塗替え | I18: Rc-Ⅲ | J18: 劣悪環境 | K18: 122 | L18: 20
B19: Rc-Ⅰ用 | C19: 8200 | H19: 部分塗替え | I19: Rc-Ⅰ | J19: 劣悪環境 | K19: 212 | L19: 20
B20: Rc-Ⅲ用 | C20: 3700 | H20: 部分塗替え | I20: Rc-Ⅲ | J20: 劣悪環境 | K20: 222 | L20: 20
H21: 点検時塗装 | I21: 点検時塗装① | J21: 普通環境 | K21: 331 | L21: 5
H22: 点検時塗装 | I22: 点検時塗装① | J22: 劣悪環境 | K22: 332 | L22: 5
B23: 点検時塗装凡例 | H23: 点検時塗装 | I23: 点検時塗装② | J23: 普通環境 | K23: 341 | L23: 5
B24: 点検時塗装① | C24: 2液性ｴﾎﾟｷｼ樹脂塗料 | H24: 点検時塗装 | I24: 点検時塗装② | J24: 劣悪環境 | K24: 342 | L24: 5
B25: 点検時塗装② | C25: 1液性ｴﾎﾟｷｼ樹脂塗料 | H25: 点検時塗装 | I25: 点検時塗装③ | J25: 普通環境 | K25: 351 | L25: 5
B26: 点検時塗装③ | C26: 2液性ｴﾎﾟｷｼ樹脂防錆剤 | H26: 点検時塗装 | I26: 点検時塗装③ | J26: 劣悪環境 | K26: 352 | L26: 5
H27: ※塗装方法 … 全面塗替え(1)，部分塗替え(2)，点検時塗装(3)
B28: 点検費用 | H28: ※仕 様 … Rc-Ⅰ(1)，Rc-Ⅲ(2)，点検時塗装①(3)，点検時塗装②(4),点検時塗装③(5)
B29: 形式 | C29: 単価 | H29: ※環 境 … 普通環境(1)，劣悪環境(2)
C30: （円/1回）
B31: 点検時塗装 | C31: 187507
